[Event "Early-Titled-Tuesday-Blitz-August-29-2023"]
[Site "Chess.com"]
[Date "2023.08.29"]
[Round "6"]
[White "TigranHH"]
[Black "Chessdreamer2020"]
[Result "0-1"]
[WhiteElo "2289"]
[BlackElo "2564"]
[TimeControl "180+1"]
[EndTime "9:06:43 PDT"]
[Termination "Chessdreamer2020 won on time"]

1. d4 {[%clk 0:02:57.8]} 1... d6 {[%clk 0:02:59.8]} 2. Nf3 {[%clk 0:02:56.3]}
2... g6 {[%clk 0:02:58.3]} 3. c4 {[%clk 0:02:55.7]} 3... Bg7 {[%clk 0:02:58.6]}
4. Nc3 {[%clk 0:02:56.6]} 4... e5 {[%clk 0:02:58.4]} 5. Bg5 {[%clk 0:02:48.8]}
5... f6 {[%clk 0:02:57.2]} 6. Bh4 {[%clk 0:02:45.4]} 6... Nc6 {[%clk 0:02:47.1]}
7. e3 {[%clk 0:02:41.9]} 7... Nge7 {[%clk 0:02:45.9]} 8. dxe5 {[%clk 0:02:23.5]}
8... dxe5 {[%clk 0:02:41.6]} 9. Qxd8+ {[%clk 0:02:05.4]} 9... Nxd8 {[%clk
0:02:42.5]} 10. O-O-O {[%clk 0:01:56.2]} 10... Nf5 {[%clk 0:02:35.5]} 11. Bg3
{[%clk 0:01:55.5]} 11... h5 {[%clk 0:02:31.2]} 12. e4 {[%clk 0:01:48.6]} 12...
Nxg3 {[%clk 0:02:25.2]} 13. hxg3 {[%clk 0:01:48]} 13... c6 {[%clk 0:02:25.1]}
14. Be2 {[%clk 0:01:26.6]} 14... Bg4 {[%clk 0:02:24.4]} 15. Nh4 {[%clk
0:01:20.8]} 15... Bxe2 {[%clk 0:02:18]} 16. Nxe2 {[%clk 0:01:21.7]} 16... Rg8
{[%clk 0:02:10.6]} 17. f4 {[%clk 0:01:13.9]} 17... Bh6 {[%clk 0:02:09.2]} 18.
Kc2 {[%clk 0:01:13.2]} 18... exf4 {[%clk 0:01:46.7]} 19. gxf4 {[%clk 0:01:12.4]}
19... Ne6 {[%clk 0:01:33]} 20. g3 {[%clk 0:01:04]} 20... Nc5 {[%clk 0:01:24.3]}
21. Nc3 {[%clk 0:00:55.4]} 21... Bf8 {[%clk 0:00:54.1]} 22. Nf3 {[%clk 0:00:38]}
22... Rd8 {[%clk 0:00:49.8]} 23. Rhe1 {[%clk 0:00:34.4]} 23... Rxd1 {[%clk
0:00:48.7]} 24. Rxd1 {[%clk 0:00:35.3]} 24... Be7 {[%clk 0:00:47.8]} 25. b4
{[%clk 0:00:34.6]} 25... Ne6 {[%clk 0:00:47.1]} 26. c5 {[%clk 0:00:30.5]} 26...
b6 {[%clk 0:00:39.3]} 27. cxb6 {[%clk 0:00:26.8]} 27... axb6 {[%clk 0:00:40.2]}
28. Kb3 {[%clk 0:00:27.5]} 28... Kf7 {[%clk 0:00:37.6]} 29. e5 {[%clk
0:00:24.4]} 29... f5 {[%clk 0:00:36]} 30. Ne2 {[%clk 0:00:21.9]} 30... g5 {[%clk
0:00:34]} 31. Nfd4 {[%clk 0:00:15.3]} 31... gxf4 {[%clk 0:00:33.5]} 32. gxf4
{[%clk 0:00:15.2]} 32... Nxd4+ {[%clk 0:00:29.4]} 33. Nxd4 {[%clk 0:00:16.1]}
33... Rg3+ {[%clk 0:00:25.9]} 34. Kb2 {[%clk 0:00:14.5]} 34... Bxb4 {[%clk
0:00:25.1]} 35. Nxf5 {[%clk 0:00:13.5]} 35... Rg2+ {[%clk 0:00:24.9]} 36. Kb3
{[%clk 0:00:13.4]} 36... Bc5 {[%clk 0:00:24.6]} 37. Nd6+ {[%clk 0:00:11.1]}
37... Ke6 {[%clk 0:00:24]} 38. Nc4 {[%clk 0:00:05.5]} 38... Rf2 {[%clk
0:00:22.1]} 39. Rh1 {[%clk 0:00:04]} 39... Rf3+ {[%clk 0:00:21.3]} 40. Kc2
{[%clk 0:00:04.1]} 40... Rxf4 {[%clk 0:00:21.4]} 41. Nd2 {[%clk 0:00:03.5]}
41... h4 {[%clk 0:00:21.4]} 42. Kd3 {[%clk 0:00:02.7]} 42... Kxe5 {[%clk
0:00:20.5]} 43. Nc4+ {[%clk 0:00:01.8]} 43... Kf5 {[%clk 0:00:20.2]} 0-1

[Event "Early-Titled-Tuesday-Blitz-August-29-2023"]
[Site "Chess.com"]
[Date "2023.08.29"]
[Round "6"]
[White "Angry_Twin"]
[Black "vovachesss"]
[Result "1-0"]
[WhiteElo "2960"]
[BlackElo "2798"]
[TimeControl "180+1"]
[EndTime "9:06:44 PDT"]
[Termination "Angry_Twin won on time"]

1. e4 {[%clk 0:03:00.9]} 1... e5 {[%clk 0:02:56.1]} 2. Nf3 {[%clk 0:03:00.8]}
2... d5 {[%clk 0:02:56.7]} 3. exd5 {[%clk 0:03:00.5]} 3... e4 {[%clk 0:02:57.2]}
4. Qe2 {[%clk 0:03:01.2]} 4... Nf6 {[%clk 0:02:57.6]} 5. Nc3 {[%clk 0:03:01.7]}
5... Be7 {[%clk 0:02:58.1]} 6. Nxe4 {[%clk 0:03:01.6]} 6... O-O {[%clk
0:02:58.8]} 7. Nxf6+ {[%clk 0:02:53.2]} 7... Bxf6 {[%clk 0:02:58.9]} 8. Qd1
{[%clk 0:02:53.8]} 8... Qxd5 {[%clk 0:02:59.1]} 9. Be2 {[%clk 0:02:53.3]} 9...
c5 {[%clk 0:02:59.7]} 10. O-O {[%clk 0:02:53.2]} 10... Nc6 {[%clk 0:03:00]} 11.
d3 {[%clk 0:02:53.7]} 11... b6 {[%clk 0:02:57.7]} 12. Nd2 {[%clk 0:02:37.3]}
12... Bb7 {[%clk 0:02:40.5]} 13. Bf3 {[%clk 0:02:36.3]} 13... Qd7 {[%clk
0:02:41.1]} 14. Ne4 {[%clk 0:02:33.2]} 14... Be5 {[%clk 0:02:40.6]} 15. Nc3
{[%clk 0:02:16.8]} 15... Rfe8 {[%clk 0:02:35.5]} 16. Be3 {[%clk 0:02:14.9]}
16... Rad8 {[%clk 0:02:32.6]} 17. h3 {[%clk 0:02:06]} 17... Bb8 {[%clk
0:02:25.2]} 18. Re1 {[%clk 0:01:54.6]} 18... Qc7 {[%clk 0:02:07.8]} 19. g3
{[%clk 0:01:53.6]} 19... Ne5 {[%clk 0:02:08.4]} 20. Bg2 {[%clk 0:01:38.5]} 20...
Bxg2 {[%clk 0:01:54.8]} 21. Kxg2 {[%clk 0:01:39.4]} 21... Qc6+ {[%clk
0:01:54.3]} 22. f3 {[%clk 0:01:39.3]} 22... h5 {[%clk 0:01:19]} 23. Ne4 {[%clk
0:01:11.8]} 23... c4 {[%clk 0:01:15.5]} 24. d4 {[%clk 0:00:58.2]} 24... Nxf3
{[%clk 0:01:13.7]} 25. Qxf3 {[%clk 0:00:58.6]} 25... Rxe4 {[%clk 0:00:59.3]} 26.
Bf2 {[%clk 0:00:57]} 26... f5 {[%clk 0:00:51.4]} 27. d5 {[%clk 0:00:29.9]} 27...
Rxd5 {[%clk 0:00:27.6]} 28. Rxe4 {[%clk 0:00:29.7]} 28... fxe4 {[%clk
0:00:27.7]} 29. Qxe4 {[%clk 0:00:30.6]} 29... Rd6 {[%clk 0:00:13.1]} 30. Qxc6
{[%clk 0:00:29.9]} 30... Rxc6 {[%clk 0:00:14]} 31. Rd1 {[%clk 0:00:30.1]} 31...
Be5 {[%clk 0:00:12.5]} 32. c3 {[%clk 0:00:28.5]} 32... b5 {[%clk 0:00:11.4]} 33.
Rd5 {[%clk 0:00:28.1]} 33... Bf6 {[%clk 0:00:08.7]} 34. Rxb5 {[%clk 0:00:26.6]}
34... Rd6 {[%clk 0:00:09.3]} 35. Be3 {[%clk 0:00:23.8]} 35... Rd3 {[%clk
0:00:09]} 36. Kf3 {[%clk 0:00:22.6]} 36... Rd1 {[%clk 0:00:04.3]} 37. Bxa7
{[%clk 0:00:19.5]} 37... Rf1+ {[%clk 0:00:04.2]} 38. Ke2 {[%clk 0:00:18.3]}
38... Rh1 {[%clk 0:00:04.3]} 39. h4 {[%clk 0:00:18.8]} 39... Ra1 {[%clk
0:00:02.3]} 40. a3 {[%clk 0:00:17.6]} 40... Be7 {[%clk 0:00:02.9]} 41. Be3
{[%clk 0:00:16.8]} 41... Rb1 {[%clk 0:00:02.8]} 42. a4 {[%clk 0:00:14.1]} 42...
Bd6 {[%clk 0:00:02.7]} 43. Bf4 {[%clk 0:00:12.6]} 43... Be7 {[%clk 0:00:01.4]}
44. a5 {[%clk 0:00:12.8]} 44... Bf6 {[%clk 0:00:01.1]} 45. Be3 {[%clk
0:00:11.3]} 1-0

[Event "Early-Titled-Tuesday-Blitz-August-29-2023"]
[Site "Chess.com"]
[Date "2023.08.29"]
[Round "6"]
[White "noblerone"]
[Black "Yuruultei"]
[Result "1-0"]
[WhiteElo "2551"]
[BlackElo "2388"]
[TimeControl "180+1"]
[EndTime "9:06:44 PDT"]
[Termination "noblerone won by resignation"]

1. d4 {[%clk 0:03:00.9]} 1... Nf6 {[%clk 0:02:57.2]} 2. Nf3 {[%clk 0:03:01.3]}
2... g6 {[%clk 0:02:58]} 3. Bg5 {[%clk 0:03:01.9]} 3... Bg7 {[%clk 0:02:57.2]}
4. Nbd2 {[%clk 0:03:02.4]} 4... d5 {[%clk 0:02:56.8]} 5. e3 {[%clk 0:03:01.3]}
5... O-O {[%clk 0:02:42.9]} 6. Be2 {[%clk 0:03:01.6]} 6... Nbd7 {[%clk
0:02:37.1]} 7. O-O {[%clk 0:03:01.6]} 7... c5 {[%clk 0:02:33.2]} 8. c4 {[%clk
0:02:56]} 8... cxd4 {[%clk 0:02:18.8]} 9. exd4 {[%clk 0:02:54.2]} 9... dxc4
{[%clk 0:02:19.7]} 10. Nxc4 {[%clk 0:02:54.2]} 10... b6 {[%clk 0:02:15.9]} 11.
Nfe5 {[%clk 0:02:49.7]} 11... Bb7 {[%clk 0:02:09.5]} 12. Bf3 {[%clk 0:02:49.7]}
12... Bxf3 {[%clk 0:02:08.3]} 13. Qxf3 {[%clk 0:02:50]} 13... Nxe5 {[%clk
0:02:01.3]} 14. dxe5 {[%clk 0:02:50.1]} 14... Nd7 {[%clk 0:01:59.2]} 15. Rfd1
{[%clk 0:02:20.7]} 15... Qe8 {[%clk 0:01:54.3]} 16. e6 {[%clk 0:02:09.9]} 16...
fxe6 {[%clk 0:01:53.7]} 17. Qg4 {[%clk 0:02:03.6]} 17... Nc5 {[%clk 0:01:48.4]}
18. Be3 {[%clk 0:01:48.4]} 18... Qf7 {[%clk 0:01:37.9]} 19. Bxc5 {[%clk
0:01:43.2]} 19... bxc5 {[%clk 0:01:38.8]} 20. Rd2 {[%clk 0:01:43]} 20... Rad8
{[%clk 0:01:22.6]} 21. Rad1 {[%clk 0:01:41.4]} 21... h5 {[%clk 0:01:18]} 22. Qe2
{[%clk 0:01:40.4]} 22... Rxd2 {[%clk 0:01:13.8]} 23. Rxd2 {[%clk 0:01:32.8]}
23... Qf5 {[%clk 0:01:08.3]} 24. b3 {[%clk 0:01:23.1]} 24... Bd4 {[%clk
0:01:06.7]} 25. g3 {[%clk 0:01:10.6]} 25... e5 {[%clk 0:00:57.3]} 26. Kg2 {[%clk
0:01:08.9]} 26... e4 {[%clk 0:00:55.9]} 27. Ne3 {[%clk 0:01:06.5]} 27... Qf3+
{[%clk 0:00:44.1]} 28. Kg1 {[%clk 0:01:02.5]} 28... e5 {[%clk 0:00:34.3]} 29.
Ng2 {[%clk 0:00:44.1]} 29... Qc3 {[%clk 0:00:22.7]} 30. Ne3 {[%clk 0:00:34.6]}
30... Rxf2 {[%clk 0:00:21.2]} 31. Kxf2 {[%clk 0:00:30.9]} 31... Qa1 {[%clk
0:00:12.5]} 32. Kg2 {[%clk 0:00:28.5]} 32... Kh7 {[%clk 0:00:09.9]} 33. Rd1
{[%clk 0:00:25.9]} 33... Qc3 {[%clk 0:00:09.6]} 34. Nd5 {[%clk 0:00:24.1]} 34...
Qa5 {[%clk 0:00:08.4]} 35. Nf6+ {[%clk 0:00:24.3]} 35... Kh6 {[%clk 0:00:07.6]}
36. Nxe4 {[%clk 0:00:25.2]} 36... Qc7 {[%clk 0:00:06.6]} 37. Qf3 {[%clk
0:00:24.4]} 37... Qb7 {[%clk 0:00:07.5]} 38. Qf8+ {[%clk 0:00:23.1]} 38... Kh7
{[%clk 0:00:08.4]} 39. Qf3 {[%clk 0:00:22.3]} 39... Qa6 {[%clk 0:00:07.3]} 40.
Rd2 {[%clk 0:00:18.9]} 40... Qb6 {[%clk 0:00:05.4]} 41. Ng5+ {[%clk 0:00:18.6]}
41... Kh6 {[%clk 0:00:04.8]} 42. h4 {[%clk 0:00:18]} 42... Qc7 {[%clk
0:00:04.6]} 43. Qf8+ {[%clk 0:00:17.8]} 43... Qg7 {[%clk 0:00:02.3]} 44. Qxg7+
{[%clk 0:00:17.3]} 44... Kxg7 {[%clk 0:00:03.2]} 45. Kf3 {[%clk 0:00:18]} 45...
Kf6 {[%clk 0:00:03.9]} 46. Ke4 {[%clk 0:00:18.5]} 46... Ke7 {[%clk 0:00:04]} 47.
Rc2 {[%clk 0:00:18]} 47... Kd6 {[%clk 0:00:04.9]} 48. Nf3 {[%clk 0:00:18.3]} 1-0

[Event "Early-Titled-Tuesday-Blitz-August-29-2023"]
[Site "Chess.com"]
[Date "2023.08.29"]
[Round "6"]
[White "snowlord"]
[Black "attack2mateU"]
[Result "1/2-1/2"]
[WhiteElo "2905"]
[BlackElo "2744"]
[TimeControl "180+1"]
[EndTime "9:06:45 PDT"]
[Termination "Game drawn - insufficient material"]

1. Nf3 {[%clk 0:02:59.5]} 1... c5 {[%clk 0:02:58.1]} 2. e4 {[%clk 0:02:58.5]}
2... d6 {[%clk 0:02:58]} 3. Nc3 {[%clk 0:02:57.9]} 3... Nf6 {[%clk 0:02:57.4]}
4. e5 {[%clk 0:02:58.6]} 4... dxe5 {[%clk 0:02:57.2]} 5. Nxe5 {[%clk 0:02:59.5]}
5... a6 {[%clk 0:02:56]} 6. g3 {[%clk 0:02:54.8]} 6... Qd6 {[%clk 0:02:56.4]} 7.
Nf3 {[%clk 0:02:52.9]} 7... b5 {[%clk 0:02:55.3]} 8. Bg2 {[%clk 0:02:52.5]} 8...
Bb7 {[%clk 0:02:55.8]} 9. O-O {[%clk 0:02:53.1]} 9... e6 {[%clk 0:02:39.5]} 10.
d3 {[%clk 0:02:53.1]} 10... Be7 {[%clk 0:02:38.7]} 11. a4 {[%clk 0:02:53.5]}
11... b4 {[%clk 0:02:37.9]} 12. Nb1 {[%clk 0:02:53.9]} 12... Nc6 {[%clk
0:02:25.4]} 13. Nbd2 {[%clk 0:02:53.6]} 13... Na5 {[%clk 0:02:25.2]} 14. Re1
{[%clk 0:02:46.7]} 14... O-O {[%clk 0:02:18.9]} 15. Qe2 {[%clk 0:02:42.3]} 15...
Rfd8 {[%clk 0:02:09]} 16. Nc4 {[%clk 0:02:29.6]} 16... Nxc4 {[%clk 0:02:08.2]}
17. dxc4 {[%clk 0:02:30]} 17... a5 {[%clk 0:01:03.2]} 18. Bf4 {[%clk 0:02:28.7]}
18... Qb6 {[%clk 0:01:03.8]} 19. b3 {[%clk 0:02:20.9]} 19... Ne4 {[%clk
0:01:04]} 20. Be5 {[%clk 0:02:12.2]} 20... Bf6 {[%clk 0:00:56]} 21. Bxf6 {[%clk
0:02:11.9]} 21... Nxf6 {[%clk 0:00:56.9]} 22. Ne5 {[%clk 0:02:11.3]} 22... Bxg2
{[%clk 0:00:54.9]} 23. Kxg2 {[%clk 0:02:12.2]} 23... Rd4 {[%clk 0:00:50.1]} 24.
Rad1 {[%clk 0:02:04.1]} 24... Rad8 {[%clk 0:00:50.1]} 25. Qf3 {[%clk 0:01:52.2]}
25... Qc7 {[%clk 0:00:38.9]} 26. Rxd4 {[%clk 0:01:51.8]} 26... Rxd4 {[%clk
0:00:38.6]} 27. Qa8+ {[%clk 0:01:49.6]} 27... Rd8 {[%clk 0:00:38]} 28. Qc6
{[%clk 0:01:49.4]} 28... Qxc6+ {[%clk 0:00:35]} 29. Nxc6 {[%clk 0:01:49.4]}
29... Rd2 {[%clk 0:00:35.6]} 30. Nxa5 {[%clk 0:01:44.5]} 30... Rxc2 {[%clk
0:00:29.6]} 31. Kf3 {[%clk 0:01:33]} 31... g5 {[%clk 0:00:25.2]} 32. h3 {[%clk
0:01:31]} 32... h5 {[%clk 0:00:25]} 33. Re5 {[%clk 0:01:28.5]} 33... g4+ {[%clk
0:00:24.7]} 34. hxg4 {[%clk 0:01:24.5]} 34... Nxg4 {[%clk 0:00:23.1]} 35. Rxh5
{[%clk 0:01:20.2]} 35... f5 {[%clk 0:00:23.6]} 36. Kf4 {[%clk 0:01:17.2]} 36...
Rxf2+ {[%clk 0:00:21.5]} 37. Kg5 {[%clk 0:01:17.8]} 37... Rf3 {[%clk 0:00:17.7]}
38. Nb7 {[%clk 0:01:03.9]} 38... Rxb3 {[%clk 0:00:12.3]} 39. Nxc5 {[%clk
0:00:59.2]} 39... Rxg3 {[%clk 0:00:12.9]} 40. Kf4 {[%clk 0:00:51.5]} 40... Rc3
{[%clk 0:00:12.1]} 41. Nxe6 {[%clk 0:00:48.8]} 41... b3 {[%clk 0:00:08]} 42.
Rxf5 {[%clk 0:00:44]} 42... b2 {[%clk 0:00:07.5]} 43. Rb5 {[%clk 0:00:42.3]}
43... Rxc4+ {[%clk 0:00:02.7]} 44. Kg5 {[%clk 0:00:42.8]} 44... Kf7 {[%clk
0:00:03]} 45. Nf4 {[%clk 0:00:31.8]} 45... Rc5+ {[%clk 0:00:02.6]} 46. Rxc5
{[%clk 0:00:32.3]} 46... b1=Q {[%clk 0:00:03.2]} 47. Rf5+ {[%clk 0:00:27.3]}
47... Ke7 {[%clk 0:00:02.7]} 48. Kxg4 {[%clk 0:00:22.2]} 48... Qd1+ {[%clk
0:00:03.2]} 49. Kg3 {[%clk 0:00:19.7]} 49... Qxa4 {[%clk 0:00:04.1]} 50. Kg4
{[%clk 0:00:18.3]} 50... Qd7 {[%clk 0:00:03.4]} 51. Kg5 {[%clk 0:00:17.9]} 51...
Qxf5+ {[%clk 0:00:03.8]} 52. Kxf5 {[%clk 0:00:18.5]} 1/2-1/2

[Event "Early-Titled-Tuesday-Blitz-August-29-2023"]
[Site "Chess.com"]
[Date "2023.08.29"]
[Round "6"]
[White "Aleksandar-Topalov"]
[Black "vishwa_vijeta"]
[Result "1-0"]
[WhiteElo "2359"]
[BlackElo "2528"]
[TimeControl "180+1"]
[EndTime "9:06:45 PDT"]
[Termination "Aleksandar-Topalov won by resignation"]

1. b3 {[%clk 0:03:00.9]} 1... c5 {[%clk 0:02:56.5]} 2. Bb2 {[%clk 0:03:00.7]}
2... d6 {[%clk 0:02:56.8]} 3. d4 {[%clk 0:03:00.1]} 3... cxd4 {[%clk 0:02:56.5]}
4. Qxd4 {[%clk 0:03:00.4]} 4... Nc6 {[%clk 0:02:56.4]} 5. Qd2 {[%clk 0:03:00.4]}
5... e5 {[%clk 0:02:55.5]} 6. c4 {[%clk 0:03:00.3]} 6... Nf6 {[%clk 0:02:55.5]}
7. Nc3 {[%clk 0:03:00.5]} 7... Be7 {[%clk 0:02:55.3]} 8. g3 {[%clk 0:03:00.8]}
8... O-O {[%clk 0:02:55.7]} 9. Bg2 {[%clk 0:03:01.3]} 9... Be6 {[%clk 0:02:56]}
10. e3 {[%clk 0:02:53.4]} 10... Rc8 {[%clk 0:02:53.1]} 11. Nge2 {[%clk
0:02:52.3]} 11... Qd7 {[%clk 0:02:43.1]} 12. O-O {[%clk 0:02:51.5]} 12... Bh3
{[%clk 0:02:43.1]} 13. Rfd1 {[%clk 0:02:48.4]} 13... Rfd8 {[%clk 0:02:40.2]} 14.
Rac1 {[%clk 0:02:34]} 14... Qe6 {[%clk 0:02:32.6]} 15. Ne4 {[%clk 0:02:14.9]}
15... Bxg2 {[%clk 0:02:28.1]} 16. Nxf6+ {[%clk 0:02:14.2]} 16... Bxf6 {[%clk
0:02:26.6]} 17. Kxg2 {[%clk 0:02:14.5]} 17... Ne7 {[%clk 0:02:27.5]} 18. Nc3
{[%clk 0:02:13.9]} 18... e4 {[%clk 0:02:07.1]} 19. Nd5 {[%clk 0:01:50.2]} 19...
Nxd5 {[%clk 0:01:57.9]} 20. cxd5 {[%clk 0:01:41.6]} 20... Qf5 {[%clk 0:01:58.3]}
21. Bxf6 {[%clk 0:01:31.8]} 21... Qf3+ {[%clk 0:01:46.2]} 22. Kg1 {[%clk
0:01:29.7]} 22... gxf6 {[%clk 0:01:45.9]} 23. Rxc8 {[%clk 0:01:26.7]} 23... Rxc8
{[%clk 0:01:45.4]} 24. Rc1 {[%clk 0:01:27.1]} 24... Re8 {[%clk 0:01:34]} 25. Rc7
{[%clk 0:01:19.6]} 25... h5 {[%clk 0:01:31.2]} 26. h4 {[%clk 0:01:18.8]} 26...
f5 {[%clk 0:01:26.5]} 27. Qc3 {[%clk 0:01:03.3]} 27... f4 {[%clk 0:01:14.9]} 28.
Rc8 {[%clk 0:00:55.6]} 28... Rxc8 {[%clk 0:01:11.5]} 29. Qxc8+ {[%clk 0:00:55]}
29... Kg7 {[%clk 0:01:11.7]} 30. gxf4 {[%clk 0:00:20.2]} 30... Qd1+ {[%clk
0:01:11.6]} 31. Kg2 {[%clk 0:00:19.8]} 31... Qxd5 {[%clk 0:01:12.5]} 32. Qd8
{[%clk 0:00:14.5]} 32... Qe6 {[%clk 0:01:08.6]} 33. Qg5+ {[%clk 0:00:13.9]}
33... Qg6 {[%clk 0:01:08.2]} 34. f5 {[%clk 0:00:10.8]} 34... Qxg5+ {[%clk
0:01:07.4]} 35. hxg5 {[%clk 0:00:11.2]} 35... d5 {[%clk 0:00:57]} 36. Kg3 {[%clk
0:00:11.4]} 36... f6 {[%clk 0:00:55.9]} 37. g6 {[%clk 0:00:09]} 37... Kh6 {[%clk
0:00:55.9]} 38. Kh4 {[%clk 0:00:07]} 38... b5 {[%clk 0:00:40.4]} 39. b4 {[%clk
0:00:06.7]} 39... a6 {[%clk 0:00:40.2]} 40. a3 {[%clk 0:00:06.9]} 40... Kg7
{[%clk 0:00:38.6]} 41. Kxh5 {[%clk 0:00:07.4]} 41... Kg8 {[%clk 0:00:39.2]} 42.
Kh6 {[%clk 0:00:07.9]} 42... Kh8 {[%clk 0:00:39.4]} 43. g7+ {[%clk 0:00:08.3]}
43... Kg8 {[%clk 0:00:39.9]} 44. Kg6 {[%clk 0:00:08.7]} 44... d4 {[%clk
0:00:40.1]} 45. exd4 {[%clk 0:00:06.5]} 45... a5 {[%clk 0:00:40.2]} 46. bxa5
{[%clk 0:00:04.4]} 46... e3 {[%clk 0:00:40.6]} 47. a6 {[%clk 0:00:03.7]} 1-0

[Event "Early-Titled-Tuesday-Blitz-August-29-2023"]
[Site "Chess.com"]
[Date "2023.08.29"]
[Round "6"]
[White "Aygehovit1992"]
[Black "Vladimir_Zakhartsov"]
[Result "0-1"]
[WhiteElo "2740"]
[BlackElo "2915"]
[TimeControl "180+1"]
[EndTime "9:06:46 PDT"]
[Termination "Vladimir_Zakhartsov won on time"]

1. e4 {[%clk 0:03:00.9]} 1... c5 {[%clk 0:02:57.6]} 2. Nc3 {[%clk 0:03:01.2]}
2... a6 {[%clk 0:02:51.2]} 3. g3 {[%clk 0:02:56.5]} 3... b5 {[%clk 0:02:51.3]}
4. Bg2 {[%clk 0:02:57.1]} 4... Bb7 {[%clk 0:02:52]} 5. f4 {[%clk 0:02:55.5]}
5... Nf6 {[%clk 0:02:50]} 6. d3 {[%clk 0:02:55.7]} 6... b4 {[%clk 0:02:48.5]} 7.
Nce2 {[%clk 0:02:54.8]} 7... d5 {[%clk 0:02:47]} 8. e5 {[%clk 0:02:54.8]} 8...
Nfd7 {[%clk 0:02:47.1]} 9. Nf3 {[%clk 0:02:53.7]} 9... e6 {[%clk 0:02:47.5]} 10.
O-O {[%clk 0:02:53.9]} 10... Nc6 {[%clk 0:02:47.9]} 11. c4 {[%clk 0:02:54.1]}
11... Nb6 {[%clk 0:02:41.1]} 12. Qc2 {[%clk 0:02:48.3]} 12... Be7 {[%clk
0:02:39.9]} 13. Be3 {[%clk 0:02:42.3]} 13... Rc8 {[%clk 0:02:33.6]} 14. Rad1
{[%clk 0:02:41.6]} 14... O-O {[%clk 0:02:31.7]} 15. h4 {[%clk 0:02:41.1]} 15...
f5 {[%clk 0:02:25.9]} 16. exf6 {[%clk 0:02:37.3]} 16... Bxf6 {[%clk 0:02:25.8]}
17. Ng5 {[%clk 0:02:37.5]} 17... Qe7 {[%clk 0:02:08.4]} 18. Bh3 {[%clk
0:02:01.7]} 18... Nd8 {[%clk 0:01:49.2]} 19. Rde1 {[%clk 0:01:07.3]} 19... h6
{[%clk 0:01:44.5]} 20. Nf3 {[%clk 0:01:07.7]} 20... Ba8 {[%clk 0:01:34.6]} 21.
Kh2 {[%clk 0:01:07.7]} 21... Qd6 {[%clk 0:01:30.8]} 22. b3 {[%clk 0:00:56.9]}
22... Rc7 {[%clk 0:01:30.3]} 23. Bc1 {[%clk 0:00:48.3]} 23... d4 {[%clk
0:01:16.2]} 24. Ne5 {[%clk 0:00:45]} 24... Nd7 {[%clk 0:01:05.5]} 25. Nxd7
{[%clk 0:00:42.8]} 25... Rxd7 {[%clk 0:01:05.1]} 26. Ng1 {[%clk 0:00:43.3]}
26... Re7 {[%clk 0:01:02.6]} 27. Nf3 {[%clk 0:00:42.1]} 27... Nf7 {[%clk
0:01:02.6]} 28. Bg2 {[%clk 0:00:28.2]} 28... Rfe8 {[%clk 0:00:59]} 29. Re2
{[%clk 0:00:24.9]} 29... e5 {[%clk 0:00:57.9]} 30. Nxe5 {[%clk 0:00:19.2]} 30...
Bxe5 {[%clk 0:00:51.4]} 31. Bxa8 {[%clk 0:00:18.8]} 31... Bxf4 {[%clk
0:00:43.5]} 32. Rxe7 {[%clk 0:00:15]} 32... Bxg3+ {[%clk 0:00:43.6]} 33. Kg2
{[%clk 0:00:15.1]} 33... Rxe7 {[%clk 0:00:40.5]} 34. Bd5 {[%clk 0:00:15.3]}
34... Bxh4 {[%clk 0:00:40.4]} 35. Bf4 {[%clk 0:00:14.4]} 35... Qg6+ {[%clk
0:00:37.6]} 36. Kh1 {[%clk 0:00:12.8]} 36... Bf6 {[%clk 0:00:35]} 37. Qg2 {[%clk
0:00:12.3]} 37... Qh5+ {[%clk 0:00:23.7]} 38. Bh2 {[%clk 0:00:12.3]} 38... Qe2
{[%clk 0:00:16.9]} 39. Rf2 {[%clk 0:00:08.4]} 39... Qd1+ {[%clk 0:00:14.3]} 40.
Bg1 {[%clk 0:00:08.3]} 40... Re1 {[%clk 0:00:12.8]} 41. Bxf7+ {[%clk 0:00:05.5]}
41... Kxf7 {[%clk 0:00:12.5]} 42. Qd5+ {[%clk 0:00:05.9]} 42... Kg6 {[%clk
0:00:09.3]} 43. Rg2+ {[%clk 0:00:05.1]} 43... Bg5 {[%clk 0:00:08.7]} 0-1